{"text_format":"1","workbook":"xlsx","n_sheets":10,"sheets":["学校基礎情報","Data","成証","教課","在証見込","在証除後","卒証","公印","アポスティーユ ","外務省お願い"],"not_rendered":{"charts":0,"images":0,"macros":1,"external_links":1,"defined_names":7,"comments":1,"pivot_tables":0},"unopened":[],"bounds":{"document_bytes":16777216,"sheet_cells":100000,"rows_first":2000,"rows_last":500,"rows_between":2000,"halvings":0,"cell_chars":16384,"cell_head_chars":4096},"cells_cut":0,"cells_raw":0,"read":"whole","date_system":"1900"}

{"sheet":"学校基礎情報","index":0,"n_rows":16,"n_cols":2,"rows_kept":16,"cut":false,"hidden":false,"merged":[]}
["　　　　"]
["学校名　　　（日本語）"]
["　　　　　　　　　　　 　（ローマ字）"]
[]
["学校所在地（日本語）"]
["　　　　　　　　　　   　（ローマ字）"]
["<2行に分けて記入してください。>"]
[]
["電話番号"]
["FAX番号"]
["E-mailアドレス"]
[]
["学校長名　（日本語）"]
["　　　　　　　　　　 　（ローマ字）"]
[]
[null,"※個人データ入力画面にお進みください。"]

{"sheet":"Data","index":1,"n_rows":47,"n_cols":48,"rows_kept":47,"cut":false,"hidden":false,"merged":[[24,33,24,35],[24,36,24,38],[24,39,24,41],[25,33,25,35],[25,36,25,38],[25,39,25,41],[26,33,26,35],[26,36,26,38],[26,39,26,41],[21,33,21,35],[21,36,21,38],[21,39,21,41],[22,33,22,35],[22,36,22,38],[22,39,22,41],[23,33,23,35],[23,36,23,38],[23,39,23,41],[1,0,1,6],[1,7,1,11],[1,13,1,17],[1,19,1,23],[1,45,1,46],[2,0,2,6],[2,7,2,12],[2,45,2,46],[5,45,5,46],[6,45,6,46],[3,0,3,6],[3,7,3,32],[3,45,3,46],[4,0,4,6],[4,7,4,23],[4,45,4,46],[7,7,7,11],[7,13,7,17],[7,19,7,23],[7,26,7,28],[7,29,7,33],[5,0,5,6],[5,7,5,11],[5,13,5,17],[5,19,5,23],[7,45,7,46],[8,45,8,46],[9,0,9,6],[9,7,9,11],[9,13,9,17],[9,19,9,23],[9,26,9,28],[9,29,9,33],[9,45,9,46],[7,0,7,6],[10,0,10,6],[10,7,10,11],[10,13,10,17],[10,19,10,23],[10,45,10,46],[11,0,11,6],[11,45,11,46],[12,0,12,6],[12,7,12,11],[12,13,12,17],[12,19,12,23],[12,25,17,25],[12,26,12,30],[15,0,15,6],[15,7,15,11],[15,13,15,17],[15,19,15,23],[12,32,12,36],[12,38,12,42],[12,45,12,46],[13,0,13,6],[13,7,13,11],[13,13,13,17],[13,19,13,23],[13,26,13,30],[13,32,13,36],[13,38,13,42],[13,45,13,46],[14,0,14,6],[14,7,14,11],[14,13,14,17],[14,19,14,23],[14,26,14,30],[14,32,14,36],[14,38,14,42],[14,45,14,46],[15,26,15,30],[15,32,15,36],[15,38,15,42],[15,45,15,46],[16,0,16,6],[16,7,16,11],[16,13,16,17],[16,19,16,23],[16,26,16,30],[16,32,16,36],[16,38,16,42],[16,45,16,46],[17,0,17,6],[17,7,17,11],[17,13,17,17],[17,19,17,23],[17,26,17,30],[17,32,17,36],[17,38,17,42],[19,0,19,6],[20,0,20,2],[20,3,20,5],[20,6,20,8],[20,9,20,11],[20,12,20,14],[20,15,20,17],[20,18,20,20],[20,21,20,23],[20,24,20,26],[20,27,20,29],[20,30,20,32],[20,33,20,35],[20,36,20,38],[20,39,20,41],[21,27,21,29],[21,30,21,32],[22,0,22,2],[22,3,22,5],[22,6,22,8],[22,9,22,11],[22,12,22,14],[22,15,22,17],[22,18,22,20],[22,21,22,23],[22,24,22,26],[22,27,22,29],[22,30,22,32],[21,0,21,2],[21,3,21,5],[21,6,21,8],[21,9,21,11],[21,12,21,14],[21,15,21,17],[21,18,21,20],[21,21,21,23],[21,24,21,26],[23,27,23,29],[23,30,23,32],[24,0,24,2],[24,3,24,5],[24,6,24,8],[24,9,24,11],[24,12,24,14],[24,15,24,17],[24,18,24,20],[24,21,24,23],[24,24,24,26],[24,27,24,29],[24,30,24,32],[23,0,23,2],[23,3,23,5],[23,6,23,8],[23,9,23,11],[23,12,23,14],[23,15,23,17],[23,18,23,20],[23,21,23,23],[23,24,23,26],[25,27,25,29],[25,30,25,32],[26,0,26,2],[26,3,26,5],[26,6,26,8],[26,9,26,11],[26,12,26,14],[26,15,26,17],[26,18,26,20],[26,21,26,23],[26,24,26,26],[26,27,26,29],[26,30,26,32],[25,0,25,2],[25,3,25,5],[25,6,25,8],[25,9,25,11],[25,12,25,14],[25,15,25,17],[25,18,25,20],[25,21,25,23],[25,24,25,26],[28,0,28,6],[29,0,29,5],[29,6,29,8],[29,9,29,11],[29,12,29,14],[29,15,29,17],[30,0,30,5],[30,6,30,8],[30,9,30,11],[30,12,30,14],[30,15,30,17],[30,18,30,20],[31,9,31,11],[31,12,31,14],[31,15,31,17],[31,18,31,20],[29,18,29,20],[29,21,29,23],[30,21,30,23],[31,21,31,23],[32,0,32,5],[32,6,32,8],[32,9,32,11],[32,12,32,14],[32,15,32,17],[32,18,32,20],[32,21,32,23],[31,0,31,5],[31,6,31,8],[42,21,43,21],[47,3,48,5],[48,15,49,17],[36,0,36,6],[36,7,36,32],[37,0,37,32],[40,6,40,26],[41,3,41,5],[41,6,41,12]]}
[]
["書類発行日",null,null,null,null,null,null,null,null,null,null,null,"年",null,null,null,null,null,"月",null,null,null,null,null,"日",null,null,null,null,null,null,null,null,null,null,null,null,null,null,null,null,null,null,null,null,"H15",null,2003]
["書類提出国",null,null,null,null,null,null,null,null,null,null,null,null,null,null,null,null,null,null,null,null,null,null,null,null,null,null,null,null,null,null,null,null,null,null,null,null,null,null,null,null,null,null,null,null,"H16",null,2004]
["名前（正式名）",null,null,null,null,null,null,null,null,null,null,null,null,null,null,null,null,null,null,null,null,null,null,null,null,null,null,null,null,null,null,null,null,null,null,null,null,null,null,null,null,null,null,null,null,"H17",null,2005]
["名前（通称名）",null,null,null,null,null,null,null,null,null,null,null,null,null,null,null,null,null,null,null,null,null,null,null,null,null,null,null,null,null,null,null,null,null,null,null,null,null,null,null,null,null,null,null,null,"H18",null,2006]
["生年月日",null,null,null,null,null,null,null,null,null,null,null,"年",null,null,null,null,null,"月",null,null,null,null,null,"日",null,null,null,null,null,null,null,null,null,null,null,null,null,null,null,null,null,null,null,null,"H19",null,2007]
[null,null,null,null,null,null,null,null,null,null,null,null,null,null,null,null,null,null,null,null,null,null,null,null,null,null,null,null,null,null,null,null,null,null,null,null,null,null,null,null,null,null,null,null,null,"H20",null,2008]
["転入学日",null,null,null,null,null,null,null,null,null,null,null,"年",null,null,null,null,null,"月",null,null,null,null,null,"日",null,"学年",null,null,null,null,null,null,null,null,null,null,null,null,null,null,null,null,null,null,"H21",null,2009]
[null,null,null,null,null,null,null,null,null,null,null,null,null,null,null,null,null,null,null,null,null,null,null,null,null,null,null,null,null,null,null,null,null,null,null,null,null,null,null,null,null,null,null,null,null,"H22",null,2010]
["転退学日",null,null,null,null,null,null,null,null,null,null,null,"年",null,null,null,null,null,"月",null,null,null,null,null,"日",null,"学年",null,null,null,null,null,null,null,null,null,null,null,null,null,null,null,null,null,null,"H23",null,2011]
["卒業年月日",null,null,null,null,null,null,null,null,null,null,null,"年",null,null,null,null,null,"月",null,null,null,null,null,"日",null,null,null,null,null,null,null,null,null,null,null,null,null,null,null,null,null,null,null,null,"H24",null,2012]
["在籍期間",null,null,null,null,null,null,null,null,null,null,null,null,null,null,null,null,null,null,null,null,null,null,null,null,null,null,null,null,null,null,null,null,null,null,null,null,null,null,null,null,null,null,null,null,"H25",null,2013]
["1年",null,null,null,null,null,null,null,null,null,null,null,"年",null,null,null,null,null,"月",null,null,null,null,null,"日","～",null,null,null,null,null,"年",null,null,null,null,null,"月",null,null,null,null,null,"日",null,"H26",null,2014]
["2年",null,null,null,null,null,null,null,null,null,null,null,"年",null,null,null,null,null,"月",null,null,null,null,null,"日",null,null,null,null,null,null,"年",null,null,null,null,null,"月",null,null,null,null,null,"日",null,"H27",null,2015]
["3年",null,null,null,null,null,null,null,null,null,null,null,"年",null,null,null,null,null,"月",null,null,null,null,null,"日",null,null,null,null,null,null,"年",null,null,null,null,null,"月",null,null,null,null,null,"日",null,"H28",null,2016]
["4年",null,null,null,null,null,null,null,null,null,null,null,"年",null,null,null,null,null,"月",null,null,null,null,null,"日",null,null,null,null,null,null,"年",null,null,null,null,null,"月",null,null,null,null,null,"日",null,"H29",null,2017]
["5年",null,null,null,null,null,null,null,null,null,null,null,"年",null,null,null,null,null,"月",null,null,null,null,null,"日",null,null,null,null,null,null,"年",null,null,null,null,null,"月",null,null,null,null,null,"日",null,"H30",null,2018]
["6年",null,null,null,null,null,null,null,null,null,null,null,"年",null,null,null,null,null,"月",null,null,null,null,null,"日",null,null,null,null,null,null,"年",null,null,null,null,null,"月",null,null,null,null,null,"日"]
[]
["成績"]
[null,null,null,"国語",null,null,"社会",null,null,"算数",null,null,"理科",null,null,"生活",null,null,"総合",null,null,"音楽",null,null,"図工",null,null,"家庭",null,null,"体育",null,null,"道徳",null,null,"特活",null,null,"外国語"]
["1年"]
["2年"]
["3年"]
["4年"]
["5年"]
["6年"]
[]
["出欠席"]
[null,null,null,null,null,null,"1年",null,null,"2年",null,null,"3年",null,null,"4年",null,null,"5年",null,null,"6年"]
["授業日数"]
["出席日数"]
["欠席日数"]
[]
[]
[]
["正式名確認用\n再入力"]
[{"$f":"IF(H37=H4,\"◎OKです。\",\"\"\"入力ミスあり。再確認してください。\")","v":"◎OKです。"}]
[]
[]
[null,null,null,null,null,null,"＊各シートを確認し、必要な書類を印刷してください。"]
[]
[null,null,null,null,null,null,null,null,null,null,null,null,null,null,null,null,null,null,null,null,null,null,null,null,null,null,null,null,null,null,"製作　　平成１８年１月"]
[null,null,null,null,null,null,null,null,null,null,null,null,null,null,null,null,null,null,null,null,null,null,null,null,null,null,null,null,null,null,"　　　　　岩西小学校"]
[null,null,null,null,null,null,null,null,null,null,null,null,null,null,null,null,null,null,null,null,null,null,null,null,null,null,null,null,null,null,"改訂　　平成２５年９月"]
[null,null,null,null,null,null,null,null,null,null,null,null,null,null,null,null,null,null,null,null,null,null,null,null,null,null,null,null,null,null,"　　　　　平成２８年３月"]
[null,null,null,null,null,null,null,null,null,null,null,null,null,null,null,null,null,null,null,null,null,null,null,null,null,null,null,null,null,null,null,null,null,"学校教育課"]

{"sheet":"成証","index":2,"n_rows":63,"n_cols":57,"rows_kept":63,"cut":false,"hidden":false,"merged":[[43,46,43,49],[43,50,43,53],[43,54,43,57],[44,46,44,49],[44,50,44,53],[44,54,44,57],[4,0,4,58],[5,0,5,58],[40,46,40,49],[40,50,40,53],[40,54,40,57],[41,46,41,49],[41,50,41,53],[41,54,41,57],[42,46,42,49],[42,50,42,53],[42,54,42,57],[37,46,37,49],[37,50,37,53],[37,54,37,57],[38,46,38,49],[38,50,38,53],[38,54,38,57],[39,46,39,49],[39,50,39,53],[39,54,39,57],[0,42,0,45],[0,46,0,47],[0,48,0,50],[0,51,0,52],[0,53,0,55],[0,56,0,57],[1,42,1,45],[1,48,1,50],[1,53,1,55],[15,0,15,47],[16,0,16,47],[19,5,19,9],[19,12,19,15],[19,18,19,20],[19,23,19,25],[19,28,19,32],[19,33,19,36],[19,39,19,41],[19,44,19,46],[21,37,21,38],[21,39,21,41],[21,44,21,46],[11,29,11,37],[11,41,11,45],[11,48,11,50],[11,51,11,52],[11,53,11,55],[11,56,11,57],[12,41,12,45],[12,48,12,50],[12,53,12,55],[16,96,16,143],[16,144,16,191],[16,192,16,239],[16,240,16,255],[18,5,18,9],[18,12,18,15],[18,16,18,17],[18,18,18,20],[18,21,18,22],[18,26,18,27],[18,28,18,32],[18,33,18,36],[18,37,18,38],[18,39,18,41],[16,48,16,95],[18,44,18,46],[18,10,18,11],[18,23,18,25],[22,5,22,9],[22,12,22,15],[22,18,22,20],[22,23,22,25],[22,28,22,32],[22,33,22,36],[22,39,22,41],[22,44,22,46],[21,5,21,9],[21,12,21,15],[21,16,21,17],[21,18,21,20],[21,21,21,22],[21,23,21,25],[21,26,21,27],[21,28,21,32],[21,33,21,36],[21,10,21,11],[24,37,24,38],[24,39,24,41],[24,44,24,46],[25,5,25,9],[25,12,25,15],[25,18,25,20],[25,23,25,25],[25,28,25,32],[25,33,25,36],[25,39,25,41],[25,44,25,46],[24,5,24,9],[24,12,24,15],[24,16,24,17],[24,18,24,20],[24,21,24,22],[24,23,24,25],[24,26,24,27],[24,28,24,32],[24,33,24,36],[24,10,24,11],[27,37,27,38],[27,39,27,41],[27,44,27,46],[28,5,28,9],[28,12,28,15],[28,18,28,20],[28,23,28,25],[28,28,28,32],[28,33,28,36],[28,39,28,41],[28,44,28,46],[27,5,27,9],[27,12,27,15],[27,16,27,17],[27,18,27,20],[27,21,27,22],[27,23,27,25],[27,26,27,27],[27,28,27,32],[27,33,27,36],[27,10,27,11],[30,37,30,38],[30,39,30,41],[30,44,30,46],[31,5,31,9],[31,12,31,15],[31,18,31,20],[31,23,31,25],[31,28,31,32],[31,33,31,36],[31,39,31,41],[31,44,31,46],[30,5,30,9],[30,12,30,15],[30,16,30,17],[30,18,30,20],[30,21,30,22],[30,23,30,25],[30,26,30,27],[30,28,30,32],[30,33,30,36],[30,10,30,11],[33,37,33,38],[33,39,33,41],[33,44,33,46],[34,5,34,9],[34,12,34,15],[34,18,34,20],[34,23,34,25],[34,28,34,32],[34,33,34,36],[34,39,34,41],[34,44,34,46],[33,5,33,9],[33,12,33,15],[33,16,33,17],[33,18,33,20],[33,21,33,22],[33,23,33,25],[33,26,33,27],[33,28,33,32],[33,33,33,36],[33,10,33,11],[37,1,38,5],[37,6,37,9],[37,10,37,13],[37,14,37,17],[37,18,37,21],[37,22,37,25],[37,26,37,29],[37,30,37,33],[37,34,37,37],[38,6,38,9],[38,10,38,13],[38,14,38,17],[38,18,38,21],[38,22,38,25],[38,26,38,29],[38,30,38,33],[38,34,38,37],[37,42,37,45],[38,42,38,45],[39,42,39,45],[39,30,39,33],[41,42,41,45],[40,26,40,29],[40,30,40,33],[40,34,40,37],[40,38,40,41],[40,42,40,45],[41,38,41,41],[38,38,38,41],[39,26,39,29],[39,34,39,37],[39,38,39,41],[37,38,37,41],[39,1,39,5],[39,6,39,9],[39,10,39,13],[39,14,39,17],[39,18,39,21],[41,22,41,25],[41,26,41,29],[41,30,41,33],[41,34,41,37],[40,1,40,5],[40,6,40,9],[40,10,40,13],[40,14,40,17],[40,18,40,21],[40,22,40,25],[41,1,41,5],[41,6,41,9],[41,10,41,13],[41,14,41,17],[41,18,41,21],[39,22,39,25],[43,6,43,9],[43,10,43,13],[43,14,43,17],[43,18,43,21],[42,1,42,5],[42,6,42,9],[42,10,42,13],[42,14,42,17],[42,18,42,21],[44,1,44,5],[44,6,44,9],[44,10,44,13],[44,14,44,17],[44,18,44,21],[43,42,43,45],[42,26,42,29],[42,30,42,33],[42,34,42,37],[42,38,42,41],[42,42,42,45],[44,22,44,25],[43,22,43,25],[43,26,43,29],[43,30,43,33],[43,34,43,37],[43,38,43,41],[44,26,44,29],[44,30,44,33],[44,34,44,37],[44,38,44,41],[44,42,44,45],[42,22,42,25],[43,1,43,5]]}
[null,null,null,null,null,null,null,null,null,null,null,null,null,null,null,null,null,null,null,null,null,null,null,null,null,null,null,null,null,null,null,null,null,null,null,null,null,null,null,null,null,null,{"$f":"Data!$H$2","v":0},null,null,null,"年",null,{"$f":"Data!$N$2","v":0},null,null,"月",null,{"$f":"Data!$T$2","v":0},null,null,"日"]
[null,null,null,null,null,null,null,null,null,null,null,null,null,null,null,null,null,null,null,null,null,null,null,null,null,null,null,null,null,null,null,null,null,null,null,null,null,null,null,null,null,null,"ano",null,null,null,null,null,"mês",null,null,null,null,"dia"]
[]
[]
["成 績 証 明 書"]
["COMPROVANTE DE AVALIAÇÃO ESCOLAR"]
[]
[]
[null,null,null,null,null,null,null,null,null,null,null,null,null,null,null,null,null,null,null,null,null,null,null,null,null,null,null,null,null,"氏  名",null,null,null,null,null,null,null,null,null,null,{"$f":"Data!$H$5","v":0}]
[null,null,null,null,null,null,null,null,null,null,null,null,null,null,null,null,null,null,null,null,null,null,null,null,null,null,null,null,null,"Nome do(a) aluno(a):",null,null,null,null,null,null,null,null,null,null,{"$f":"Data!$H$4","v":0}]
[]
[null,null,null,null,null,null,null,null,null,null,null,null,null,null,null,null,null,null,null,null,null,null,null,null,null,null,null,null,null,"生   年  月   日",null,null,null,null,null,null,null,null,null,null,null,{"$f":"Data!$H$6","v":0},null,null,null,null,"年",null,{"$f":"Data!$N$6","v":0},null,null,"月",null,{"$f":"Data!$T$6","v":0},null,null,"日"]
[null,null,null,null,null,null,null,null,null,null,null,null,null,null,null,null,null,null,null,null,null,null,null,null,null,null,null,null,null,"Data de nascimento：",null,null,null,null,null,null,null,null,null,null,null,"ano",null,null,null,null,null,null,"mês",null,null,null,null,"dia"]
[]
[]
["　上記のものは本校に在学し、次のような成績であったことを証明します。"]
["    Certifico que o(a) aluno(a) acima esteve matriculado(a) nesta escola e obteve as seguintes notas:"]
[]
[null,null,null,null,null,"第1学年",null,null,null,null,"（",null,{"$f":"Data!$H$13","v":0},null,null,null,"年",null,{"$f":"Data!$N$13","v":0},null,null,"月",null,{"$f":"Data!$T$13","v":0},null,null,"日",null,"～",null,null,null,null,{"$f":"Data!$AA$13","v":0},null,null,null,"年",null,{"$f":"Data!AG13","v":0},null,null,"月",null,{"$f":"Data!$AM$13","v":0},null,null,"日","）"]
[null,null,null,null,null,"1ªsérie",null,null,null,null,null,null,"ano",null,null,null,null,null,"mês",null,null,null,null,"dia",null,null,null,null,"a",null,null,null,null,"ano",null,null,null,null,null,"mês",null,null,null,null,"dia"]
[]
[null,null,null,null,null,"第2学年",null,null,null,null,"（",null,{"$f":"Data!$H$14","v":0},null,null,null,"年",null,{"$f":"Data!$N$14","v":0},null,null,"月",null,{"$f":"Data!$T$14","v":0},null,null,"日",null,"～",null,null,null,null,{"$f":"Data!$AA$14","v":0},null,null,null,"年",null,{"$f":"Data!AG14","v":0},null,null,"月",null,{"$f":"Data!$AM$14","v":0},null,null,"日","）"]
[null,null,null,null,null,"2ªsérie",null,null,null,null,null,null,"ano",null,null,null,null,null,"mês",null,null,null,null,"dia",null,null,null,null,"a",null,null,null,null,"ano",null,null,null,null,null,"mês",null,null,null,null,"dia"]
[]
[null,null,null,null,null,"第3学年",null,null,null,null,"（",null,{"$f":"Data!$H$15","v":0},null,null,null,"年",null,{"$f":"Data!$N$15","v":0},null,null,"月",null,{"$f":"Data!$T$15","v":0},null,null,"日",null,"～",null,null,null,null,{"$f":"Data!$AA$15","v":0},null,null,null,"年",null,{"$f":"Data!AG15","v":0},null,null,"月",null,{"$f":"Data!$AM$15","v":0},null,null,"日","）"]
[null,null,null,null,null,"3ªsérie",null,null,null,null,null,null,"ano",null,null,null,null,null,"mês",null,null,null,null,"dia",null,null,null,null,"a",null,null,null,null,"ano",null,null,null,null,null,"mês",null,null,null,null,"dia"]
[]
[null,null,null,null,null,"第4学年",null,null,null,null,"（",null,{"$f":"Data!$H$16","v":0},null,null,null,"年",null,{"$f":"Data!$N$16","v":0},null,null,"月",null,{"$f":"Data!$T$16","v":0},null,null,"日",null,"～",null,null,null,null,{"$f":"Data!$AA$16","v":0},null,null,null,"年",null,{"$f":"Data!AG16","v":0},null,null,"月",null,{"$f":"Data!$AM$16","v":0},null,null,"日","）"]
[null,null,null,null,null,"4ªsérie",null,null,null,null,null,null,"ano",null,null,null,null,null,"mês",null,null,null,null,"dia",null,null,null,null,"a",null,null,null,null,"ano",null,null,null,null,null,"mês",null,null,null,null,"dia"]
[]
[null,null,null,null,null,"第5学年",null,null,null,null,"（",null,{"$f":"Data!$H$17","v":0},null,null,null,"年",null,{"$f":"Data!$N$17","v":0},null,null,"月",null,{"$f":"Data!$T$17","v":0},null,null,"日",null,"～",null,null,null,null,{"$f":"Data!$AA$17","v":0},null,null,null,"年",null,{"$f":"Data!AG17","v":0},null,null,"月",null,{"$f":"Data!$AM$17","v":0},null,null,"日","）"]
[null,null,null,null,null,"5ªsérie",null,null,null,null,null,null,"ano",null,null,null,null,null,"mês",null,null,null,null,"dia",null,null,null,null,"a",null,null,null,null,"ano",null,null,null,null,null,"mês",null,null,null,null,"dia"]
[]
[null,null,null,null,null,"第6学年",null,null,null,null,"（",null,{"$f":"Data!$H$18","v":0},null,null,null,"年",null,{"$f":"Data!$N$18","v":0},null,null,"月",null,{"$f":"Data!$T$18","v":0},null,null,"日",null,"～",null,null,null,null,{"$f":"Data!$AA$18","v":0},null,null,null,"年",null,{"$f":"Data!AG18","v":0},null,null,"月",null,{"$f":"Data!$AM$18","v":0},null,null,"日","）"]
[null,null,null,null,null,"6ªsérie",null,null,null,null,null,null,"ano",null,null,null,null,null,"mês",null,null,null,null,"dia",null,null,null,null,"a",null,null,null,null,"ano",null,null,null,null,null,"mês",null,null,null,null,"dia"]
[]
[]
[null,null,null,null,null,null,"国語",null,null,null,"社会",null,null,null,"算数",null,null,null,"理科",null,null,null,"生活",null,null,null,"総合",null,null,null,"音楽",null,null,null,"図工",null,null,null,"家庭",null,null,null,"体育",null,null,null,"道徳",null,null,null,"特活",null,null,null,"外国語"]
[null,null,null,null,null,null,"Língua Japonesa",null,null,null,"Estudos  Socias",null,null,null,"Matemá-tica",null,null,null,"Ciências",null,null,null,"Estudo do  Meio",null,null,null,"Estudos através de pesquisa",null,null,null," Música",null,null,null,"Trabalhos Manuais",null,null,null,"Educação Doméstica",null,null,null,"Educação \nFísica",null,null,null,"Educação \nMoral",null,null,null,"Atividades\nEspeciais",null,null,null,"Línguas\nEstrangeiras"]
[null,"１年 1ªsérie ",null,null,null,null,{"$f":"Data!$D22","v":0},null,null,null,null,null,null,null,{"$f":"Data!J22","v":0},null,null,null,null,null,null,null,{"$f":"Data!P22","v":0},null,null,null,null,null,null,null,{"$f":"Data!V22","v":0},null,null,null,{"$f":"Data!Y22","v":0},null,null,null,null,null,null,null,{"$f":"Data!AE22","v":0},null,null,null,{"$f":"Data!AH22","v":0},null,null,null,{"$f":"Data!AK22","v":0},null,null,null,{"$f":"Data!AN22","v":0}]
[null,"２年 2ªsérie",null,null,null,null,{"$f":"Data!$D23","v":0},null,null,null,null,null,null,null,{"$f":"Data!J23","v":0},null,null,null,null,null,null,null,{"$f":"Data!P23","v":0},null,null,null,null,null,null,null,{"$f":"Data!V23","v":0},null,null,null,{"$f":"Data!Y23","v":0},null,null,null,null,null,null,null,{"$f":"Data!AE23","v":0},null,null,null,{"$f":"Data!AH23","v":0},null,null,null,{"$f":"Data!AK23","v":0},null,null,null,{"$f":"Data!AN23","v":0}]
[null,"３年 3ªsérie",null,null,null,null,{"$f":"Data!$D24","v":0},null,null,null,{"$f":"Data!G24","v":0},null,null,null,{"$f":"Data!J24","v":0},null,null,null,{"$f":"Data!M24","v":0},null,null,null,null,null,null,null,{"$f":"Data!S24","v":0},null,null,null,{"$f":"Data!V24","v":0},null,null,null,{"$f":"Data!Y24","v":0},null,null,null,null,null,null,null,{"$f":"Data!AE24","v":0},null,null,null,{"$f":"Data!AH24","v":0},null,null,null,{"$f":"Data!AK24","v":0},null,null,null,{"$f":"Data!AN24","v":0}]
[null,"４年 4ªsérie",null,null,null,null,{"$f":"Data!$D25","v":0},null,null,null,{"$f":"Data!G25","v":0},null,null,null,{"$f":"Data!J25","v":0},null,null,null,{"$f":"Data!M25","v":0},null,null,null,null,null,null,null,{"$f":"Data!S25","v":0},null,null,null,{"$f":"Data!V25","v":0},null,null,null,{"$f":"Data!Y25","v":0},null,null,null,null,null,null,null,{"$f":"Data!AE25","v":0},null,null,null,{"$f":"Data!AH25","v":0},null,null,null,{"$f":"Data!AK25","v":0},null,null,null,{"$f":"Data!AN25","v":0}]
[null,"５年 5ªsérie",null,null,null,null,{"$f":"Data!$D26","v":0},null,null,null,{"$f":"Data!G26","v":0},null,null,null,{"$f":"Data!J26","v":0},null,null,null,{"$f":"Data!M26","v":0},null,null,null,null,null,null,null,{"$f":"Data!S26","v":0},null,null,null,{"$f":"Data!V26","v":0},null,null,null,{"$f":"Data!Y26","v":0},null,null,null,{"$f":"Data!AB26","v":0},null,null,null,{"$f":"Data!AE26","v":0},null,null,null,{"$f":"Data!AH26","v":0},null,null,null,{"$f":"Data!AK26","v":0},null,null,null,{"$f":"Data!AN26","v":0}]
[null,"６年 6ªsérie",null,null,null,null,{"$f":"Data!$D27","v":0},null,null,null,{"$f":"Data!G27","v":0},null,null,null,{"$f":"Data!J27","v":0},null,null,null,{"$f":"Data!M27","v":0},null,null,null,null,null,null,null,{"$f":"Data!S27","v":0},null,null,null,{"$f":"Data!V27","v":0},null,null,null,{"$f":"Data!Y27","v":0},null,null,null,{"$f":"Data!AB27","v":0},null,null,null,{"$f":"Data!AE27","v":0},null,null,null,{"$f":"Data!AH27","v":0},null,null,null,{"$f":"Data!AK27","v":0},null,null,null,{"$f":"Data!AN27","v":0}]
[null,"　  ",null,null,null,null,"３＝よくできました",null,null,null,null,null,null,null,null,null,null,"２＝できました",null,null,null,null,null,null,null,null,null,null,"１＝がんばりましょう",null,null,null,null,null,null,null,null,null,null,null,null,"＊＝評価せず"]
[null,null,null,null,null,"notas：","3＝excelente",null,null,null,null,null,null,null,null,null,null,"2＝regular",null,null,null,null,null,null,null,null,null,null,"1 ＝precisa melhorar",null,null,null,null,null,null,null,null,null,null,null,null,"＊＝não tem avaliação"]
[]
[]
[]
[]
[]
[null,null,null,"学校所在地：",null,null,null,null,null,null,null,null,{"$f":"学校基礎情報!$B$5","v":0}]
[null,null,null,"Endereço da escola:",null,null,null,null,null,null,null,null,{"$f":"学校基礎情報!$B$6","v":0}]
[null,null,null,null,null,null,null,null,null,null,null,null,{"$f":"学校基礎情報!$B$7","v":0}]
[]
[null,null,null,"学校名：",null,null,null,null,null,null,null,null,{"$f":"学校基礎情報!$B$2","v":0}]
[null,null,null,"Nome da escola:",null,null,null,null,null,null,null,null,{"$f":"学校基礎情報!$B$3","v":0}]
[null,null,null,null,null,null,null,null,null,null,null,null,"(Escola Municipal de Ensino Fundamental Primário de Toyohashi)"]
[]
[]
[null,null,null,"校長名：",null,null,null,null,null,null,null,null,{"$f":"学校基礎情報!$B$13","v":0},null,null,null,null,null,null,null,null,null,null,null,null,null,null,null,null,null,null,null,null,null,null,null,null,"公印"]
[null,null,null,"Nome do diretor:",null,null,null,null,null,null,null,null,{"$f":"学校基礎情報!$B$14","v":0},null,null,null,null,null,null,null,null,null,null,null,null,null,null,null,null,null,null,null,null,null,null,null,null,"carimbo do diretor"]

{"sheet":"教課","index":3,"n_rows":60,"n_cols":47,"rows_kept":60,"cut":false,"hidden":false,"merged":[[46,3,46,17],[46,18,46,22],[46,23,46,27],[46,28,46,32],[46,33,46,37],[46,38,46,42],[46,43,46,47],[44,3,44,17],[44,18,44,22],[44,23,44,27],[44,28,44,32],[44,33,44,37],[44,38,44,42],[44,43,44,47],[45,3,45,17],[45,18,45,22],[45,23,45,27],[45,28,45,32],[45,33,45,37],[45,38,45,42],[45,43,45,47],[0,30,0,35],[0,36,0,37],[0,38,0,40],[0,41,0,42],[0,43,0,45],[0,46,0,47],[1,30,1,35],[1,38,1,40],[1,43,1,45],[3,13,3,34],[4,5,4,42],[9,17,9,25],[9,30,9,35],[9,36,9,37],[9,38,9,40],[9,41,9,42],[9,43,9,45],[9,46,9,47],[10,30,10,35],[10,38,10,40],[10,43,10,45],[12,11,12,12],[13,22,13,23],[13,96,13,143],[13,144,13,191],[13,192,13,239],[13,240,13,255],[14,96,14,143],[14,144,14,191],[14,192,14,239],[14,240,14,255],[17,3,17,6],[17,9,17,10],[17,13,17,14],[17,19,17,22],[17,25,17,26],[17,29,17,30],[19,1,19,46],[20,1,20,46],[22,0,22,18],[23,3,25,8],[23,9,25,13],[23,14,25,18],[23,19,25,23],[23,24,25,29],[23,30,25,35],[23,36,25,41],[23,42,25,47],[24,50,24,54],[25,50,25,54],[26,3,26,8],[26,9,26,13],[26,14,26,18],[26,19,26,23],[26,24,26,29],[26,30,26,35],[26,36,26,41],[26,42,26,47],[26,50,26,54],[27,3,27,8],[27,9,27,13],[27,14,27,18],[27,19,27,23],[27,24,27,29],[27,30,27,35],[27,36,27,41],[27,42,27,47],[27,50,27,54],[28,3,28,8],[28,9,28,13],[28,14,28,18],[28,19,28,23],[28,24,28,29],[28,30,28,35],[28,36,28,41],[28,42,28,47],[28,50,28,54],[29,3,29,41],[29,49,29,53],[31,0,31,17],[31,49,31,53],[32,3,33,17],[32,18,32,47],[33,18,33,22],[33,23,33,27],[33,28,33,32],[33,33,33,37],[33,38,33,42],[33,43,33,47],[33,51,33,55],[34,3,34,17],[34,18,34,22],[34,23,34,27],[34,28,34,32],[34,33,34,37],[34,38,34,42],[34,43,34,47],[34,51,34,55],[35,3,35,17],[35,18,35,22],[35,23,35,27],[35,28,35,32],[35,33,35,37],[35,38,35,42],[35,43,35,47],[37,38,37,42],[37,43,37,47],[36,3,36,17],[36,18,36,22],[36,23,36,27],[36,28,36,32],[36,33,36,37],[36,38,36,42],[38,23,38,27],[38,28,38,32],[38,33,38,37],[38,38,38,42],[36,43,36,47],[37,3,37,17],[37,18,37,22],[37,23,37,27],[37,28,37,32],[37,33,37,37],[38,43,38,47],[39,3,39,17],[39,18,39,22],[39,23,39,27],[39,28,39,32],[39,33,39,37],[39,38,39,42],[39,43,39,47],[38,3,38,17],[38,18,38,22],[41,38,41,42],[41,43,41,47],[40,3,40,17],[40,18,40,22],[40,23,40,27],[40,28,40,32],[40,33,40,37],[40,38,40,42],[42,23,42,27],[42,28,42,32],[42,33,42,37],[42,38,42,42],[40,43,40,47],[41,3,41,17],[41,18,41,22],[41,23,41,27],[41,28,41,32],[41,33,41,37],[42,43,42,47],[43,3,43,17],[43,18,43,22],[43,23,43,27],[43,28,43,32],[43,33,43,37],[43,38,43,42],[43,43,43,47],[42,3,42,17],[42,18,42,22]]}
[null,null,null,null,null,null,null,null,null,null,null,null,null,null,null,null,null,null,null,null,null,null,null,null,null,null,null,null,null,null,{"$f":"Data!$H$2","v":0},null,null,null,null,null,"年",null,{"$f":"Data!$N$2","v":0},null,null,"月",null,{"$f":"Data!$T$2","v":0},null,null,"日"]
[null,null,null,null,null,null,null,null,null,null,null,null,null,null,null,null,null,null,null,null,null,null,null,null,null,null,null,null,null,null,"ano",null,null,null,null,null,null,null,"mês",null,null,null,null,"dia"]
[]
[null,null,null,null,null,null,null,null,null,null,null,null,null,"教 育 課 程 証 明 書"]
[null,null,null,null,null,"FORMULÁRIO DE CARGA HORÁRIA"]
[]
[null,null,null,null,null,null,null,null,null,null,null,null,null,null,null,null,null,"氏 名",null,null,null,null,null,null,null,null,null,null,null,{"$f":"Data!$H$5","v":0}]
[null,null,null,null,null,null,null,null,null,null,null,null,null,null,null,null,null,"Nome do(a) aluno(a):",null,null,null,null,null,null,null,null,null,null,null,{"$f":"Data!$H$4","v":0}]
[]
[null,null,null,null,null,null,null,null,null,null,null,null,null,null,null,null,null,"生   年  月   日",null,null,null,null,null,null,null,null,null,null,null,null,{"$f":"Data!$H$6","v":0},null,null,null,null,null,"年",null,{"$f":"Data!$N$6","v":0},null,null,"月",null,{"$f":"Data!$T$6","v":0},null,null,"日"]
[null,null,null,null,null,null,null,null,null,null,null,null,null,null,null,null,null,"Data de nascimento：",null,null,null,null,null,null,null,null,null,null,null,null,"ano",null,null,null,null,null,null,null,"mês",null,null,null,null,"dia"]
[]
[null,"上記のものは本校第",null,null,null,null,null,null,null,null,null,{"$f":"Data!$AD$10","v":0},null,"学年に在学し、次のような履修状況にあったことを証明します。"]
[null,"Certifico que o(a) aluno(a) acima cursou até ",null,null,null,null,null,null,null,null,null,null,null,null,null,null,null,null,null,null,null,null,{"$f":"Data!$AD$10","v":0},null,"ª"," série, conforme discriminado abaixo."]
[]
[]
["１.在籍年月日  Período que esteve matriculado"]
[null,null,null,{"$f":"Data!$H$8","v":0},null,null,null,"年",null,{"$f":"Data!$N$8","v":0},null,"月",null,{"$f":"Data!$T$8","v":0},null,"日",null,"～",null,{"$f":"Data!$H$10","v":0},null,null,null,"年",null,{"$f":"Data!$N$10","v":0},null,"月",null,{"$f":"Data!$T$10","v":0},null,"日"]
[null,null,null,null,"ano　",null,null,null,null,"mês",null,null,null," dia",null,null,null,null,null,null,"ano　",null,null,null,null,"mês",null,null,null,"dia"]
[null,"　　　日本の学校の１年間は、４月から翌年の３月までです。"]
[null,"　　　　　Nas escolas do Japão, o ano letivo começa em abril e termina em março do ano seguinte."]
[]
["２.出席状況　Frequência"]
[null,null,null,null,null,null,null,null,null,"授業日数\nNúmero de\ndias letivos",null,null,null,null,"出席日数\nPresença\n(dias)",null,null,null,null,"欠席日数\nNúmero de\nfaltas (dias)",null,null,null,null,null,null,null,null,null,null,"授業日数\nNúmero de\ndias letivos",null,null,null,null,null,"出席日数\nPresença\n(dias)",null,null,null,null,null,"欠席日数\nNúmero de\nfaltas (dias)"]
[]
[]
[null,null,null,"１年 1ªsérie",null,null,null,null,null,{"$f":"Data!$G$31","v":0},null,null,null,null,{"$f":"Data!$G$32","v":0},null,null,null,null,{"$f":"Data!$G$33","v":0},null,null,null,null,"４年 4ªsérie",null,null,null,null,null,{"$f":"Data!$P$31","v":0},null,null,null,null,null,{"$f":"Data!$P$32","v":0},null,null,null,null,null,{"$f":"Data!$P$33","v":0}]
[null,null,null,"２年 2ªsérie",null,null,null,null,null,{"$f":"Data!$J$31","v":0},null,null,null,null,{"$f":"Data!$J$32","v":0},null,null,null,null,{"$f":"Data!$J$33","v":0},null,null,null,null,"５年 5ªsérie",null,null,null,null,null,{"$f":"Data!$S$31","v":0},null,null,null,null,null,{"$f":"Data!$S$32","v":0},null,null,null,null,null,{"$f":"Data!$S$33","v":0}]
[null,null,null,"３年 3ªsérie",null,null,null,null,null,{"$f":"Data!$M$31","v":0},null,null,null,null,{"$f":"Data!$M$32","v":0},null,null,null,null,{"$f":"Data!$M$33","v":0},null,null,null,null,"６年 6ªsérie",null,null,null,null,null,{"$f":"Data!$V$31","v":0},null,null,null,null,null,{"$f":"Data!$V$32","v":0},null,null,null,null,null,{"$f":"Data!$V$33","v":0}]
[null,null,null,"As aulas são de segunda à sexta, das  8:20  às  15:35."]
[]
["３.教育課程　Carga horária"]
[null,null,null,"教科名  Matérias",null,null,null,null,null,null,null,null,null,null,null,null,null,null,"学年　série"]
[null,null,null,null,null,null,null,null,null,null,null,null,null,null,null,null,null,null,"1ª",null,null,null,null,"2ª",null,null,null,null,"3ª",null,null,null,null,"4ª",null,null,null,null,"5ª",null,null,null,null,"6ª"]
[null,null,null,"国語 Língua Japonesa ",null,null,null,null,null,null,null,null,null,null,null,null,null,null,306,null,null,null,null,315,null,null,null,null,245,null,null,null,null,245,null,null,null,null,175,null,null,null,null,175]
[null,null,null,"社会 Estudos Socias",null,null,null,null,null,null,null,null,null,null,null,null,null,null,null,null,null,null,null,null,null,null,null,null,70,null,null,null,null,90,null,null,null,null,100,null,null,null,null,105]
[null,null,null,"算数 Matemática",null,null,null,null,null,null,null,null,null,null,null,null,null,null,136,null,null,null,null,175,null,null,null,null,175,null,null,null,null,175,null,null,null,null,175,null,null,null,null,175]
[null,null,null,"理科 Ciências",null,null,null,null,null,null,null,null,null,null,null,null,null,null,null,null,null,null,null,null,null,null,null,null,90,null,null,null,null,105,null,null,null,null,105,null,null,null,null,105]
[null,null,null,"生活 Estudo do Meio",null,null,null,null,null,null,null,null,null,null,null,null,null,null,102,null,null,null,null,105]
[null,null,null,"総合 Estudo através de pesquisa",null,null,null,null,null,null,null,null,null,null,null,null,null,null,null,null,null,null,null,null,null,null,null,null,70,null,null,null,null,70,null,null,null,null,70,null,null,null,null,70]
[null,null,null,"音楽 Música",null,null,null,null,null,null,null,null,null,null,null,null,null,null,68,null,null,null,null,70,null,null,null,null,60,null,null,null,null,60,null,null,null,null,50,null,null,null,null,50]
[null,null,null,"図工 Trabalhos Manuais",null,null,null,null,null,null,null,null,null,null,null,null,null,null,68,null,null,null,null,70,null,null,null,null,60,null,null,null,null,60,null,null,null,null,50,null,null,null,null,50]
[null,null,null,"家庭 Educação Doméstica",null,null,null,null,null,null,null,null,null,null,null,null,null,null,null,null,null,null,null,null,null,null,null,null,null,null,null,null,null,null,null,null,null,null,60,null,null,null,null,55]
[null,null,null,"体育 Educação Física",null,null,null,null,null,null,null,null,null,null,null,null,null,null,102,null,null,null,null,105,null,null,null,null,105,null,null,null,null,105,null,null,null,null,90,null,null,null,null,90]
[null,null,null,"道徳 Educação Moral",null,null,null,null,null,null,null,null,null,null,null,null,null,null,34,null,null,null,null,35,null,null,null,null,35,null,null,null,null,35,null,null,null,null,35,null,null,null,null,35]
[null,null,null,"特別活動 Atividades Especiais",null,null,null,null,null,null,null,null,null,null,null,null,null,null,34,null,null,null,null,35,null,null,null,null,35,null,null,null,null,35,null,null,null,null,35,null,null,null,null,35]
[null,null,null,"外国語活動 Atividades em Línguas Estrangeiras",null,null,null,null,null,null,null,null,null,null,null,null,null,null,null,null,null,null,null,null,null,null,null,null,null,null,null,null,null,null,null,null,null,null,35,null,null,null,null,35]
[null,null,null,"*","年間時数を記入  horas/aulas ao ano",null,null,null,null,null,null,null,null,null,null,null,null,null,null,null,"年間は３５週です。  São 35 semanas de aula ao ano"]
[]
[]
[null,null,null,"学校所在地：",null,null,null,null,null,null,null,null,null,null,{"$f":"学校基礎情報!$B$5","v":0}]
[null,null,null,"Endereço da escola:",null,null,null,null,null,null,null,null,null,null,{"$f":"学校基礎情報!$B$6","v":0}]
[null,null,null,null,null,null,null,null,null,null,null,null,null,null,{"$f":"学校基礎情報!$B$7","v":0}]
[]
[null,null,null,"学校名：",null,null,null,null,null,null,null,null,null,null,{"$f":"学校基礎情報!$B$2","v":0}]
[null,null,null,"Nome da escola:",null,null,null,null,null,null,null,null,null,null,{"$f":"学校基礎情報!$B$3","v":0}]
[null,null,null,null,null,null,null,null,null,null,null,null,null,null,"(Escola Municipal de Ensino Fundamental Primário de Toyohashi)"]
[]
[null,null,null,"校長名：",null,null,null,null,null,null,null,null,null,null,{"$f":"学校基礎情報!$B$13","v":0},null,null,null,null,null,null,null,null,null,null,null,null,null,null,null,null,null,null,null,null,null,null,null,"公印"]
[null,null,null,"Nome do diretor:",null,null,null,null,null,null,null,null,null,null,{"$f":"学校基礎情報!$B$14","v":0},null,null,null,null,null,null,null,null,null,null,null,null,null,null,null,null,null,null,null,null,null,null,null,"carimbo do diretor"]

{"sheet":"在証見込","index":4,"n_rows":38,"n_cols":47,"rows_kept":38,"cut":false,"hidden":false,"merged":[[1,13,1,34],[2,5,2,42],[6,29,6,47],[8,17,8,25],[8,30,8,35],[8,36,8,37],[8,38,8,40],[8,41,8,42],[8,43,8,45],[8,46,8,47],[9,30,9,35],[9,38,9,40],[9,43,9,45],[12,2,12,16],[12,17,12,18],[12,19,12,45],[13,11,13,15],[13,16,13,21],[13,22,13,23],[13,24,13,26],[13,27,13,28],[13,29,13,31],[13,32,13,45],[13,48,13,95],[13,96,13,143],[13,144,13,191],[13,192,13,239],[13,240,13,255],[14,48,14,95],[14,96,14,143],[14,144,14,191],[14,192,14,239],[14,240,14,255],[17,5,17,30],[17,31,17,35],[17,37,17,40],[17,42,17,45],[20,20,20,29],[20,30,20,35],[20,36,20,37],[20,38,20,40],[20,41,20,42],[20,43,20,45],[20,46,20,47],[21,30,21,35],[21,38,21,40],[21,43,21,45],[18,31,18,35],[18,37,18,40],[18,42,18,45]]}
[]
[null,null,null,null,null,null,null,null,null,null,null,null,null,"在　学　証　明　書"]
[null,null,null,null,null,"COMPROVANTE  DE  MATRICULA"]
[]
[]
[null,null,null,null,null,null,null,null,null,null,null,null,null,null,null,null,null,"氏    名",null,null,null,null,null,null,null,null,null,null,null,{"$f":"Data!$H$5","v":0}]
[null,null,null,null,null,null,null,null,null,null,null,null,null,null,null,null,null,"Nome do(a) aluno(a):",null,null,null,null,null,null,null,null,null,null,null,{"$f":"Data!$H$4","v":0}]
[]
[null,null,null,null,null,null,null,null,null,null,null,null,null,null,null,null,null,"生   年  月   日",null,null,null,null,null,null,null,null,null,null,null,null,{"$f":"Data!$H$6","v":0},null,null,null,null,null,"年",null,{"$f":"Data!$N$6","v":0},null,null,"月",null,{"$f":"Data!$T$6","v":0},null,null,"日"]
[null,null,null,null,null,null,null,null,null,null,null,null,null,null,null,null,null,"Data de nascimento：",null,null,null,null,null,null,null,null,null,null,null,null,"ano",null,null,null,null,null,null,null,"mês",null,null,null,null,"dia"]
[]
[]
[null,null,"上記の者は本校、第",null,null,null,null,null,null,null,null,null,null,null,null,null,null,{"$f":"Data!$AD$10","v":0},null,"学年に在籍していることを証明します。"]
[null,null,null,null,null,null,null,null,null,null,null,"（西暦",null,null,null,null,{"$f":"Data!$H$10","v":0},null,null,null,null,null,"年",null,{"$f":"Data!$N$10","v":0},null,null,"月",null,{"$f":"Data!$T$10","v":0},null,null,"日去校の見込み）"]
[]
[null,null,"　Certifico  que  o(a)  aluno(a)  acima  está  matriculado(a)  na",null,null,null,null,null,null,null,null,null,null,null,null,null,null,null,null,null,null,null,null,null,null,null,null,null,null,null,null,null,null,null,null,null,null,null,{"$f":"Data!$AD$10","v":0},null,null,"ª série"]
[null,null,"desta escola."]
[null,null,null,null,null,"( com data de saída prevista para   ",null,null,null,null,null,null,null,null,null,null,null,null,null,null,null,null,null,null,null,null,null,null,null,null,null,{"$f":"Data!$H$10","v":0},null,null,null,null,"/",{"$f":"Data!$N$10","v":0},null,null,null,"/",{"$f":"Data!$T$10","v":0},null,null,null,")"]
[null,null,null,null,null,null,null,null,null,null,null,null,null,null,null,null,null,null,null,null,null,null,null,null,null,null,null,null,null,null,null,"ano",null,null,null,null,null,"mês",null,null,null,null,"dia"]
[]
[null,null,null,null,null,null,null,null,null,null,null,null,null,null,null,null,null,null,null,null,"Data de Emissão",null,null,null,null,null,null,null,null,null,{"$f":"Data!$H$2","v":0},null,null,null,null,null,"年",null,{"$f":"Data!$N$2","v":0},null,null,"月",null,{"$f":"Data!$T$2","v":0},null,null,"日"]
[null,null,null,null,null,null,null,null,null,null,null,null,null,null,null,null,null,null,null,null,null,null,null,null,null,null,null,null,null,null,"ano",null,null,null,null,null,null,null,"mês",null,null,null,null,"dia"]
[]
[]
[]
[]
[null,"学校所在地",null,null,null,null,null,null,null,null,null,null,null,{"$f":"学校基礎情報!$B$5","v":0}]
[null,"Endereço da escola:",null,null,null,null,null,null,null,null,null,null,null,{"$f":"学校基礎情報!$B$6","v":0}]
[null,null,null,null,null,null,null,null,null,null,null,null,null,{"$f":"学校基礎情報!$B$7","v":0}]
[null,null,null,null,null,null,null,null,null,null,null,null,null,null,null,"電話",null,null,null,"Tel: ",null,null,null,{"$f":"学校基礎情報!$B$9","v":0}]
[null,null,null,null,null,null,null,null,null,null,null,null,null,null,null,null,null,null,null,"Fax:",null,null,null,{"$f":"学校基礎情報!$B$10","v":0}]
[]
[null,"学校名",null,null,null,null,null,null,null,null,null,null,null,{"$f":"学校基礎情報!$B$2","v":0}]
[null,"Nome da escola:",null,null,null,null,null,null,null,null,null,null,null,{"$f":"学校基礎情報!$B$3","v":0}]
[null,null,null,null,null,null,null,null,null,null,null,null,null,"(Escola Municipal de Ensino Fundamental Primário de Toyohashi)"]
[]
[null,"校長名",null,null,null,null,null,null,null,null,null,null,null,{"$f":"学校基礎情報!$B$13","v":0},null,null,null,null,null,null,null,null,null,null,null,null,null,null,null,null,null,null,null,null,null,null,null,null,"公印"]
[null,"Nome do diretor:",null,null,null,null,null,null,null,null,null,null,null,{"$f":"学校基礎情報!$B$14","v":0},null,null,null,null,null,null,null,null,null,null,null,null,null,null,null,null,null,null,null,null,null,null,null,null,"carimbo do diretor"]

{"sheet":"在証除後","index":5,"n_rows":40,"n_cols":47,"rows_kept":40,"cut":false,"hidden":false,"merged":[[1,13,1,34],[2,5,2,42],[5,29,5,47],[6,29,6,47],[8,17,8,25],[8,30,8,35],[8,36,8,37],[8,38,8,40],[8,41,8,42],[8,43,8,45],[8,46,8,47],[9,30,9,35],[9,38,9,40],[9,43,9,45],[12,1,12,8],[12,9,12,15],[12,16,12,17],[12,18,12,21],[12,22,12,23],[12,24,12,27],[12,28,12,29],[12,31,12,33],[12,34,12,35],[12,36,12,38],[12,39,12,45],[12,46,12,47],[17,39,17,40],[13,0,13,3],[13,4,13,5],[13,6,13,9],[13,10,13,11],[13,13,13,15],[13,16,13,17],[13,18,13,44],[17,1,17,4],[17,6,17,8],[17,10,17,12],[17,14,17,15],[17,24,17,27],[17,29,17,31],[17,33,17,35],[18,1,18,4],[18,24,18,27],[19,9,19,44],[23,19,23,29],[20,96,20,143],[20,48,20,95],[24,30,24,35],[24,38,24,40],[24,43,24,45],[20,192,20,239],[20,240,20,255],[23,30,23,35],[23,36,23,37],[23,38,23,40],[23,41,23,42],[23,43,23,45],[23,46,23,47],[20,144,20,191]]}
[]
[null,null,null,null,null,null,null,null,null,null,null,null,null,"在　学　証　明　書"]
[null,null,null,null,null,"COMPROVANTE  DE  MATRÍCULA"]
[]
[]
[null,null,null,null,null,null,null,null,null,null,null,null,null,null,null,null,null,"氏    名",null,null,null,null,null,null,null,null,null,null,null,{"$f":"Data!$H$5","v":0}]
[null,null,null,null,null,null,null,null,null,null,null,null,null,null,null,null,null,"Nome do(a) aluno(a):",null,null,null,null,null,null,null,null,null,null,null,{"$f":"Data!$H$4","v":0}]
[]
[null,null,null,null,null,null,null,null,null,null,null,null,null,null,null,null,null,"生  年  月  日",null,null,null,null,null,null,null,null,null,null,null,null,{"$f":"Data!$H$6","v":0},null,null,null,null,null,"年",null,{"$f":"Data!$N$6","v":0},null,null,"月",null,{"$f":"Data!$T$6","v":0},null,null,"日"]
[null,null,null,null,null,null,null,null,null,null,null,null,null,null,null,null,null,"Data de nascimento：",null,null,null,null,null,null,null,null,null,null,null,null,"ano",null,null,null,null,null,null,null,"mês",null,null,null,null,"dia"]
[]
[]
[null,"上記の者は、",null,null,null,null,null,null,null,{"$f":"Data!$H$8","v":0},null,null,null,null,null,null,"年",null,{"$f":"Data!$N$8","v":0},null,null,null,"月",null,{"$f":"Data!$T$8","v":0},null,null,null,"日",null,"（",{"$f":"Data!$AD$8","v":0},null,null,"年）",null,"から",null,null,{"$f":"Data!$H$10","v":0},null,null,null,null,null,null,"年"]
[{"$f":"Data!$N$10","v":0},null,null,null,"月",null,{"$f":"Data!$T$10","v":0},null,null,null,"日",null,"（",{"$f":"Data!$AD$10","v":0},null,null,"年）",null,"まで本校に在籍していたことを証明します。"]
[]
[null,"Certifico que o(a) aluno(a) acima esteve matriculado(a) nesta escola no período de"]
[]
[null,{"$f":"Data!$H$8","v":0},null,null,null,null,{"$f":"Data!$N$8","v":0},null,null,null,{"$f":"Data!$T$8","v":0},null,null,"(",{"$f":"Data!$AD$8","v":0},null,"ª","série ) ",null,null,null,null,"a",null,{"$f":"Data!$H$10","v":0},null,null,null,null,{"$f":"Data!$N$10","v":0},null,null,null,{"$f":"Data!$T$10","v":0},null,null,null,null,"(",{"$f":"Data!$AD$10","v":0},null,"ª","série ) ."]
[null,"ano",null,null,null,null,"mês",null,null,null,null,"dia",null,null,null,null,null,null,null,null,null,null,null,null,"ano",null,null,null,null,null,"mês",null,null,null,"dia"]
[]
[]
[]
[]
[null,null,null,null,null,null,null,null,null,null,null,null,null,null,null,null,null,null,null,"Data de Emissão",null,null,null,null,null,null,null,null,null,null,{"$f":"Data!$H$2","v":0},null,null,null,null,null,"年",null,{"$f":"Data!$N$2","v":0},null,null,"月",null,{"$f":"Data!$T$2","v":0},null,null,"日"]
[null,null,null,null,null,null,null,null,null,null,null,null,null,null,null,null,null,null,null,null,null,null,null,null,null,null,null,null,null,null,"ano",null,null,null,null,null,null,null,"mês",null,null,null,null,"dia"]
[]
[]
[]
[null,"学校所在地",null,null,null,null,null,null,null,null,null,null,null,{"$f":"学校基礎情報!$B$5","v":0}]
[null,"Endereço da escola:",null,null,null,null,null,null,null,null,null,null,null,{"$f":"学校基礎情報!$B$6","v":0}]
[null,null,null,null,null,null,null,null,null,null,null,null,null,{"$f":"学校基礎情報!$B$7","v":0}]
[null,null,null,null,null,null,null,null,null,null,null,null,null,null,null,"電話",null,null,null,"Tel: ",null,null,null,{"$f":"学校基礎情報!$B$9","v":0}]
[null,null,null,null,null,null,null,null,null,null,null,null,null,null,null,null,null,null,null,"Fax:",null,null,null,{"$f":"学校基礎情報!$B$10","v":0}]
[]
[null,"学校名",null,null,null,null,null,null,null,null,null,null,null,{"$f":"学校基礎情報!$B$2","v":0}]
[null,"Nome da escola:",null,null,null,null,null,null,null,null,null,null,null,{"$f":"学校基礎情報!$B$3","v":0}]
[null,null,null,null,null,null,null,null,null,null,null,null,null,"(Escola Municipal de Ensino Fundamental Primário de Toyohashi)"]
[]
[null,"校長名",null,null,null,null,null,null,null,null,null,null,null,{"$f":"学校基礎情報!$B$13","v":0},null,null,null,null,null,null,null,null,null,null,null,null,null,null,null,null,null,null,null,null,null,null,null,null,"公印"]
[null,"Nome do diretor:",null,null,null,null,null,null,null,null,null,null,null,{"$f":"学校基礎情報!$B$14","v":0},null,null,null,null,null,null,null,null,null,null,null,null,null,null,null,null,null,null,null,null,null,null,null,null,"carimbo do diretor"]

{"sheet":"卒証","index":6,"n_rows":42,"n_cols":45,"rows_kept":42,"cut":false,"hidden":false,"merged":[[3,0,3,39],[4,0,4,39],[12,26,12,29],[12,31,12,32],[12,35,12,36],[13,26,13,29],[13,31,13,32],[13,35,13,36],[27,33,27,34],[27,35,27,37],[18,2,18,11],[18,12,18,14],[18,17,18,18],[18,21,18,22],[19,32,19,35],[27,43,27,44],[28,30,28,32],[28,35,28,37],[28,40,28,42],[19,41,19,43],[20,32,20,35],[20,37,20,39],[20,41,20,43],[21,31,21,32],[27,30,27,32],[27,38,27,39],[27,40,27,42],[19,37,19,39]]}
[]
[]
[]
["卒業証明書"]
["CERTIFICADO DE CONCLUSÃO"]
[]
[]
[]
[null,null,null,null,null,null,null,null,null,null,null,null,null,null,null,null,"氏　　名",null,null,null,null,null,null,null,null,null,{"$f":"Data!$H$5","v":0}]
[null,null,null,null,null,null,null,null,null,null,null,null,null,null,null,null,"Nome do(a) aluno(a):",null,null,null,null,null,null,null,null,null,{"$f":"Data!$H$4","v":0}]
[]
[]
[null,null,null,null,null,null,null,null,null,null,null,null,null,null,null,null,"生　年　月　日",null,null,null,null,null,null,null,null,null,{"$f":"Data!$H$6","v":0},null,null,null,"年",{"$f":"Data!$N$6","v":0},null,"月",null,{"$f":"Data!$T$6","v":0},null,"日"]
[null,null,null,null,null,null,null,null,null,null,null,null,null,null,null,null,"Data de nascimento:",null,null,null,null,null,null,null,null,null,"ano",null,null,null,null,"mês",null,null,null,"dia"]
[]
[]
[]
[]
[null,null,"上記のものは本校を",null,null,null,null,null,null,null,null,null,{"$f":"Data!$H$11","v":0},null,null,"年",null,{"$f":"Data!$N$11","v":0},null,"月",null,{"$f":"Data!$T$11","v":0},null,"日","に卒業したことを証明します。"]
[null,null,"  Certifico que o(a) aluno(a) acima formou-se nesta escola em  ",null,null,null,null,null,null,null,null,null,null,null,null,null,null,null,null,null,null,null,null,null,null,null,null,null,null,null,null,null,{"$f":"Data!$H11","v":0},null,null,null,"/",{"$f":"Data!$N11","v":0},null,null,"/",{"$f":"Data!$T11","v":0},null,null,"."]
[null,null,null,null,null,null,null,null,null,null,null,null,null,null,null,null,null,null,null,null,null,null,null,null,null,null,null,null,null,null,null,null,"(ano)",null,null,null,null,"(mês)",null,null,null,"(dia)"]
[]
[]
[]
[]
[]
[]
[null,null,null,null,null,null,null,null,null,null,null,null,null,null,null,null,null,null,null,null,null,"Data de Emissão",null,null,null,null,null,null,null,null,{"$f":"Data!$H$2","v":0},null,null,"年",null,{"$f":"Data!$N$2","v":0},null,null,"月",null,{"$f":"Data!$T$2","v":0},null,null,"日"]
[null,null,null,null,null,null,null,null,null,null,null,null,null,null,null,null,null,null,null,null,null,null,null,null,null,null,null,null,null,null,"ano",null,null,null,null,"mês",null,null,null,null,"dia"]
[]
[]
[]
[null,null,"学校所在地",null,null,null,null,null,null,null,null,null,{"$f":"学校基礎情報!$B$5","v":0}]
[null,null,"Endereço da escola:",null,null,null,null,null,null,null,null,null,{"$f":"学校基礎情報!$B$6","v":0}]
[null,null,null,null,null,null,null,null,null,null,null,null,{"$f":"学校基礎情報!$B$7","v":0}]
[]
[null,null,"学校名",null,null,null,null,null,null,null,null,null,{"$f":"学校基礎情報!$B$2","v":0}]
[null,null,"Nome da escola:",null,null,null,null,null,null,null,null,null,{"$f":"学校基礎情報!$B$3","v":0}]
[null,null,null,null,null,null,null,null,null,null,null,null,"(Escola Municipal de Ensino Fundamental Primário de Toyohashi)"]
[]
[null,null,"学校長",null,null,null,null,null,null,null,null,null,{"$f":"学校基礎情報!$B$13","v":0},null,null,null,null,null,null,null,null,null,null,null,null,null,null,null,null,null,null,null,null,null,null,null,"公印"]
[null,null,"Nome do diretor:",null,null,null,null,null,null,null,null,null,{"$f":"学校基礎情報!$B$14","v":0},null,null,null,null,null,null,null,null,null,null,null,null,null,null,null,null,null,null,null,null,null,null,null,"carimbo do diretor"]

{"sheet":"公印","index":7,"n_rows":61,"n_cols":43,"rows_kept":61,"cut":false,"hidden":false,"merged":[[0,0,1,19],[2,0,2,19],[3,0,3,19],[0,21,1,40],[21,0,24,1],[8,14,8,19],[9,0,10,4],[9,14,10,19],[7,0,8,4],[7,5,10,13],[7,14,7,19],[11,21,13,40],[14,0,16,19],[14,21,16,40],[17,21,20,25],[17,26,19,40],[37,10,37,14],[37,15,37,18],[26,0,36,0],[29,14,29,18],[30,16,30,18],[33,14,33,18],[35,12,35,18],[31,16,31,18],[38,12,38,18],[41,2,41,8],[41,12,41,18],[39,12,39,18],[40,12,40,18],[60,0,62,2],[60,7,62,9],[43,1,46,6],[43,7,46,19],[47,1,50,6],[55,0,57,19],[47,13,50,13],[47,14,50,15],[47,16,50,16],[37,0,53,0],[47,7,50,12],[47,17,50,18],[47,19,50,19],[51,1,53,6],[51,11,51,19],[53,11,53,19],[1,42,2,48],[2,21,2,40],[3,21,3,40],[7,21,8,25],[7,26,10,34],[7,35,7,40],[8,35,8,40],[9,21,10,25],[9,35,10,40],[11,0,13,19],[17,0,20,4],[17,5,19,19],[21,8,24,9],[21,21,24,22],[21,29,24,30],[22,2,23,7],[22,23,23,28],[33,35,33,39],[35,33,35,39],[26,21,36,21],[29,35,29,39],[30,37,30,39],[31,37,31,40],[41,23,41,29],[41,33,41,39],[43,22,46,27],[43,28,46,40],[51,22,53,27],[51,32,51,40],[53,32,53,40],[55,21,57,40],[60,21,62,23],[60,28,62,30],[47,38,50,39],[47,40,50,40],[47,22,50,27],[47,28,50,33],[47,34,50,34],[47,35,50,36],[47,37,50,37],[37,21,53,21],[37,31,37,35],[37,36,37,39],[38,33,38,39],[39,33,39,39],[40,33,40,39]]}
["公 印 確 認 申 請 書",null,null,null,null,null,null,null,null,null,null,null,null,null,null,null,null,null,null,null,null,"公 印 確 認 申 請 書"]
[null,null,null,null,null,null,null,null,null,null,null,null,null,null,null,null,null,null,null,null,null,null,null,null,null,null,null,null,null,null,null,null,null,null,null,null,null,null,null,null,null,null,"外務省  公印確認申請書（AUTHENTICATION）参照"]
["APPLICATION FORM FOR AUTHENTICATION",null,null,null,null,null,null,null,null,null,null,null,null,null,null,null,null,null,null,null,null,"APPLICATION FORM FOR AUTHENTICATION"]
["OF OFFICIAL SEAL(S)",null,null,null,null,null,null,null,null,null,null,null,null,null,null,null,null,null,null,null,null,"OF OFFICIAL SEAL(S)",null,null,null,null,null,null,null,null,null,null,null,null,null,null,null,null,null,null,null,null,"https://www.mofa.go.jp/mofaj/toko/page22_000550.html"]
[]
[null,null,null,null,null,null,null,null,null,null,null,null,null,"令和",null,"年",null,"月",null,"日",null,null,null,null,null,null,null,null,null,null,null,null,null,null,"令和",null,"年",null,"月",null,"日"]
[null,null,null,null,null,null,null,null,null,null,null,null,null,"Date :",null,"Year",null,"Month",null,"Day",null,null,null,null,null,null,null,null,null,null,null,null,null,null,"Date :",null,"Year",null,"Month",null,"Day"]
["Ⓐあなたの氏名 Applicant's name",null,null,null,null,"　",null,null,null,null,null,null,null,null,"電話番号（携帯）",null,null,null,null,null,null,"Ⓐあなたの氏名 Applicant's name",null,null,null,null,"記入している人の名前",null,null,null,null,null,null,null,null,"電話番号（携帯）"]
[null,null,null,null,null,null,null,null,null,null,null,null,null,null,"Telephone number(Mobile)：",null,null,null,null,null,null,null,null,null,null,null,null,null,null,null,null,null,null,null,null,"Telephone number(Mobile)："]
["（社名　Company)",null,null,null,null,null,null,null,null,null,null,null,null,null,{"$f":"学校基礎情報!$B9","v":0},null,null,null,null,null,null,"（社名　Company)",null,null,null,null,null,null,null,null,null,null,null,null,null,"昼間に連絡がとれる番号"]
[]
["証明書を必要としている方（Ⓑ）との関係 Relationship with Ⓑ\n本人 Self　　　　　　代理人（業務・個人）Representative (Business / Personal)（※）",null,null,null,null,null,null,null,null,null,null,null,null,null,null,null,null,null,null,null,null,"証明書を必要としている方（Ⓑ）との関係 Relationship with Ⓑ\n本人 Self　　　　　　代理人（業務・個人）Representative (Business / Personal)（※）"]
[]
[]
["（※）代理人による申請の場合は委任状が必要です。\n If you are representative(Business/Personal), please attach/enclose the power of attorney. ",null,null,null,null,null,null,null,null,null,null,null,null,null,null,null,null,null,null,null,null,"（※）代理人による申請の場合は委任状が必要です。\n If you are representative(Business/Personal), please attach/enclose the power of attorney. "]
[]
[]
["Ⓑ証明書を必要としている方\nName of person/company\n who need the attached document",null,null,null,null,{"$f":"Data!$H4","v":0},null,null,null,null,null,null,null,null,null,null,null,null,null,null,null,"Ⓑ証明書を必要としている方\nName of person/company\n who need the attached document",null,null,null,null,"児童生徒名"]
[]
[]
[null,null,null,null,null,"Ⓐ と同じ場合は記入不要です。 If same as Ⓐ, you do not have to fill out.",null,null,null,null,null,null,null,null,null,null,null,null,null,null,null,null,null,null,null,null,"Ⓐ と同じ場合は記入不要です。 If same as Ⓐ, you do not have to fill out."]
["提出先国名\nCountry to submit",null,null,null,null,null,null,null,"使用目的\nPurpose of use",null,"□就学（留学）（Study abroad）",null,null,null,null,"□就職（Enter employment）",null,null,null,null,null,"提出先国名\nCountry to submit",null,null,null,null,null,null,null,"使用目的\nPurpose of use",null,"□就学（留学）（Study abroad）",null,null,null,null,"□就職（Enter employment）"]
[null,null,{"$f":"Data!$H3","v":0},null,null,null,null,null,null,null,"□査証申請（Visa application）",null,null,null,null,"□出生（Birth ）",null,null,null,null,null,null,null,"提出国名",null,null,null,null,null,null,null,"□査証申請（Visa application）",null,null,null,null,"□出生（Birth ）"]
[null,null,null,null,null,null,null,null,null,null,"□結婚（Marriage）",null,null,null,null,"□離婚（Divorce）",null,null,null,null,null,null,null,null,null,null,null,null,null,null,null,"□結婚（Marriage）",null,null,null,null,"□離婚（Divorce）"]
[null,null,"在本邦大使館・領事館 Embassy / Consulate　in Japan",null,null,null,null,null,null,null,"□その他（Others）（　　　　　　　　　　　　　　　　　　　　　　　　　）",null,null,null,null,null,null,null,null,null,null,null,null,"在本邦大使館・領事館 Embassy / Consulate　in Japan",null,null,null,null,null,null,null,"□その他（Others）（　　　　　　　　　　　　　　　　　　　　　　　　　）"]
[]
["書　　　類",null,null,null,null,null,null,null,null,null,null,null,null,null,null,null,null,null,null,null,null,"書　　　類"]
[null,"★申請公印確認が必要な書類（添付される書類）の番号に○をつけて下さい。",null,null,null,null,null,null,null,null,null,null,null,null,null,null,null,null,null,null,null,null,"★申請公印確認が必要な書類（添付される書類）の番号に○をつけて下さい。"]
[null,"Please circle the corresponding number of the　document(s) you attached for the authentication.",null,null,null,null,null,null,null,null,null,null,null,null,null,null,null,null,null,null,null,null,"Please circle the corresponding number of the　document(s) you attached for the authentication."]
[null,"１","婚姻要件具備証明書",null,null,null,null,null,null,"７","戸籍謄(抄)本",null,null,null,null,null,null,null,null,null,null,null,"１","婚姻要件具備証明書",null,null,null,null,null,null,"７","戸籍謄(抄)本"]
[null,null,"　Certificate(s) of eligibility for marriage",null,null,null,null,null,null,null,"　Family register(s) （Head of family:",null,null,null,null,null,null,null,null,"）",null,null,null,"　Certificate(s) of eligibility for marriage",null,null,null,null,null,null,null,"　Family register(s) （Head of family:",null,null,null,null,null,null,null,null,"）"]
[null,"２","公証人認証書",null,null,null,null,null,null,"８","学校関係（卒業・修了・成績・その他：",null,null,null,null,null,null,null,null,"）",null,null,"２","公証人認証書",null,null,null,null,null,null,"８","学校関係（卒業・修了・成績・その他：",null,null,null,null,null,"教育課程証明書・在籍証明書　　　）"]
[null,null,"　Notarial document(s)",null,null,null,null,null,null,null,"　Education document(s)（Graduation/Completion/",null,null,null,null,null,null,null,null,null,null,null,null,"　Notarial document(s)",null,null,null,null,null,null,null,"　Education document(s)（Graduation/Completion/"]
[null,"３","医療医薬機器製造",null,null,null,null,null,null,null,"　Transcript(s)/Others:",null,null,null,null,null,null,null,null,"）",null,null,"３","医療医薬機器製造",null,null,null,null,null,null,null,"　Transcript(s)/Others:",null,null,null,null,null,null,null,null,"）"]
[null,null,"　Medical and pharmaceutical document(s)",null,null,null,null,null,null,"９","受理・記載事項証明（出生・婚姻・離婚・死亡・住民票・",null,null,null,null,null,null,null,null,null,null,null,null,"　Medical and pharmaceutical document(s)",null,null,null,null,null,null,"９","受理・記載事項証明（出生・婚姻・離婚・死亡・住民票・"]
[null,"４","警察証明",null,null,null,null,null,null,null,"その他：",null,null,null,null,null,null,null,null,"）",null,null,"４","警察証明",null,null,null,null,null,null,null,"その他：",null,null,null,null,null,null,null,null,"）"]
[null,null,"　Criminal record(s)",null,null,null,null,null,null,null,"　Civil status document(s) （Birth / Marriage / Divorce / ",null,null,null,null,null,null,null,null,null,null,null,null,"　Criminal record(s)",null,null,null,null,null,null,null,"　Civil status document(s) （Birth / Marriage / Divorce / "]
["       Document(s)","５","健康診断書",null,null,null,null,null,null,null,"　Death / Residence / Others: ",null,null,null,null,null,null,null,null,"）",null,"       Document(s)","５","健康診断書",null,null,null,null,null,null,null,"　Death / Residence / Others: ",null,null,null,null,null,null,null,null,"）"]
[null,null,"　Medical certificate(s)",null,null,null,null,null,null,"１０","その他（",null,null,null,null,null,null,null,null,"）",null,null,null,"　Medical certificate(s)",null,null,null,null,null,null,"１０","その他（",null,null,null,null,null,null,null,null,"）"]
[null,"６","登記事項証明",null,null,null,null,null,null,null,"　Others（",null,null,null,null,null,null,null,null,"）",null,null,"６","登記事項証明",null,null,null,null,null,null,null,"　Others（",null,null,null,null,null,null,null,null,"）"]
[null,null,"　Extracts from commercial registers",null,null,null,null,null,null,null,null,null,null,null,null,null,null,null,null,null,null,null,null,"　Extracts from commercial registers"]
[]
[]
[null,"書類の発行者の肩書き（公印名）\nNameCapacity of official seal",null,null,null,null,null,{"$f":"学校基礎情報!$B2","v":0},null,null,null,null,null,null,null,null,null,null,null,null,null,null,"書類の発行者の肩書き（公印名）\nNameCapacity of official seal"]
[]
[]
[]
[null,"発行年月日\nDate of issue ",null,null,null,null,null,{"$f":"Data!$H2","v":0},null,null,null,null,null,"年\nYear",{"$f":"Data!$N2","v":0},null,"月\nMonth",{"$f":"Data!$T2","v":0},null,"日\nDay",null,null,"発行年月日\nDate of issue ",null,null,null,null,null,null,null,null,null,null,null,"年\nYear",null,null,"月\nMonth",null,null,"日\nDay"]
[]
[]
[]
[null,"申請通数\nNumber of  documents",null,null,null,null,null,"□１通(One Document)",null,null,null,"□(同一書類が)4通以上(　　　通。理由(reason)　　　　　　　)",null,null,null,null,null,null,null,null,null,null,"申請通数\nNumber of  documents",null,null,null,null,null,"□１通(One Document)",null,null,null,"□(同一書類が)4通以上(　　　通。理由(reason)　　　　　　　)"]
[null,null,null,null,null,null,null,"□2通(Two Documents)",null,null,null,"※同一の証明書を4枚以上申請をする場合は、理由(提出先等)を記載してください。",null,null,null,null,null,null,null,null,null,null,null,null,null,null,null,null,"□2通(Two Documents)",null,null,null,"※同一の証明書を4枚以上申請をする場合は、理由(提出先等)を記載してください。"]
[null,null,null,null,null,null,null,"□3通(Three Documents)",null,null,null,"If you are applying for more than four, please provide the reason (e.g., where to submit it).",null,null,null,null,null,null,null,null,null,null,null,null,null,null,null,null,"□3通(Three Documents)",null,null,null,"If you are applying for more than four, please provide the reason (e.g., where to submit it)."]
[]
["（注１）公印確認は、日本にある外国の大使館（領事館）が領事認証を付与するために必要とされるものですので、求めがある場合のみ申請できます。 You can apply for authentication of official seal(s)  only for legalization by the foreign consul in Japan.\n（注２）同一書類の申請が４通以上で理由がない場合、３通を上限として交付いたしますので、予め御了承ください。場合によっては､提出先からの要求文書を提出して頂く可能性があります。Please note that if there is no reason to apply more than four,  only three documents will be processed. In some cases, you may be asked to provide the written request documents by the party to submit.",null,null,null,null,null,null,null,null,null,null,null,null,null,null,null,null,null,null,null,null,"（注１）公印確認は、日本にある外国の大使館（領事館）が領事認証を付与するために必要とされるものですので、求めがある場合のみ申請できます。 You can apply for authentication of official seal(s)  only for legalization by the foreign consul in Japan.\n（注２）同一書類の申請が４通以上で理由がない場合、３通を上限として交付いたしますので、予め御了承ください。場合によっては､提出先からの要求文書を提出して頂く可能性があります。Please note that if there is no reason to apply more than four,  only three documents will be processed. In some cases, you may be asked to provide the written request documents by the party to submit."]
[]
[]
[]
["※外務省使用欄　Official use only",null,null,null,null,null,null,null,null,null,null,null,null,null,null,null,null,null,null,null,null,"※外務省使用欄　Official use only"]
["証明日付",null,null,null,null,null,null,"受理番号",null,null,null,null,null,null,null,null,null,null,null,null,null,"証明日付",null,null,null,null,null,null,"受理番号"]

{"sheet":"アポスティーユ ","index":8,"n_rows":67,"n_cols":43,"rows_kept":67,"cut":false,"hidden":false,"merged":[[59,0,61,19],[59,21,61,40],[64,0,65,2],[64,11,68,13],[64,21,65,23],[64,32,68,34],[66,0,68,2],[66,21,68,23],[53,38,55,39],[53,40,55,40],[56,1,58,6],[56,22,58,27],[58,11,58,19],[58,32,58,40],[53,22,55,27],[53,28,55,33],[53,34,55,34],[53,35,55,36],[53,37,55,37],[47,22,49,27],[47,28,49,40],[50,1,52,6],[50,7,52,19],[50,22,52,27],[50,28,52,40],[44,0,58,0],[44,21,58,21],[47,1,49,6],[47,7,49,19],[53,1,55,6],[53,7,55,12],[53,13,55,13],[53,14,55,15],[53,16,55,16],[53,17,55,18],[53,19,55,19],[1,42,2,48],[26,2,29,6],[26,7,29,9],[26,23,29,27],[26,28,29,30],[4,0,5,19],[4,21,5,40],[6,0,7,19],[6,21,7,40],[8,0,8,19],[8,21,8,40],[12,35,12,40],[13,14,13,19],[13,35,13,40],[14,0,15,4],[14,14,15,19],[14,21,15,25],[14,35,15,40],[12,0,13,4],[12,5,15,13],[12,14,12,19],[12,21,13,25],[12,26,15,34],[16,0,18,19],[16,21,18,40],[19,0,20,19],[19,21,20,40],[22,0,25,4],[22,5,24,19],[22,21,25,25],[22,26,24,40],[26,0,29,1],[26,21,29,22],[31,0,43,0],[31,21,43,21],[34,14,34,18],[40,12,40,18],[43,12,43,18],[36,16,36,18],[34,35,34,39],[35,16,35,18],[35,37,35,39],[36,37,36,40],[38,14,38,18],[38,35,38,39],[40,33,40,39],[42,10,42,14],[42,15,42,18],[42,31,42,35],[42,36,42,39],[43,33,43,39],[44,12,44,18],[44,33,44,39],[45,12,45,18],[45,33,45,39]]}
[]
[null,null,null,null,null,null,null,null,null,null,null,null,null,null,null,null,null,null,null,null,null,null,null,null,null,null,null,null,null,null,null,null,null,null,null,null,null,null,null,null,null,null,"外務省　「アポスティーユ申請書（APOSTILLE）」参照"]
[]
[null,null,null,null,null,null,null,null,null,null,null,null,null,null,null,null,null,null,null,null,null,null,null,null,null,null,null,null,null,null,null,null,null,null,null,null,null,null,null,null,null,null,"https://www.mofa.go.jp/mofaj/toko/page22_000550.html"]
["アポスティーユ申請書",null,null,null,null,null,null,null,null,null,null,null,null,null,null,null,null,null,null,null,null,"アポスティーユ申請書"]
[]
["APPLICATION FORM FOR APOSTILLE",null,null,null,null,null,null,null,null,null,null,null,null,null,null,null,null,null,null,null,null,"APPLICATION FORM FOR APOSTILLE"]
[]
["「外国公文書の認証を不要とする条約（ハーグ条約）」  ",null,null,null,null,null,null,null,null,null,null,null,null,null,null,null,null,null,null,null,null,"「外国公文書の認証を不要とする条約（ハーグ条約）」  "]
[]
[null,null,null,null,null,null,null,null,null,null,null,null,null,"令和",null,"年",null,"月",null,"日",null,null,null,null,null,null,null,null,null,null,null,null,null,null,"令和",null,"年",null,"月",null,"日"]
[null,null,null,null,null,null,null,null,null,null,null,null,null,"Date :",null,"Year",null,"Month",null,"Day",null,null,null,null,null,null,null,null,null,null,null,null,null,null,"Date :",null,"Year",null,"Month",null,"Day"]
["Ⓐあなたの氏名 Applicant's name",null,null,null,null,null,null,null,null,null,null,null,null,null,"電話番号（携帯）",null,null,null,null,null,null,"Ⓐあなたの氏名 Applicant's name",null,null,null,null,"記入している方の名前",null,null,null,null,null,null,null,null,"電話番号（携帯）"]
[null,null,null,null,null,null,null,null,null,null,null,null,null,null,"Telephone number(Mobile)：",null,null,null,null,null,null,null,null,null,null,null,null,null,null,null,null,null,null,null,null,"Telephone number(Mobile)："]
["（社名　Company)",null,null,null,null,null,null,null,null,null,null,null,null,null,{"$f":"学校基礎情報!$B9","v":0},null,null,null,null,null,null,"（社名　Company)",null,null,null,null,null,null,null,null,null,null,null,null,null,"昼間に連絡がとれる番号"]
[]
["証明書を必要としている方（Ⓑ）との関係 Relationship with Ⓑ\n本人 Self　　　　　　代理人（業務・個人）Representative (Business / Personal)（※）",null,null,null,null,null,null,null,null,null,null,null,null,null,null,null,null,null,null,null,null,"証明書を必要としている方（Ⓑ）との関係 Relationship with Ⓑ\n本人 Self　　　　　　代理人（業務・個人）Representative (Business / Personal)（※）"]
[]
[]
["（※）代理人による申請の場合は委任状が必要です。 If you are representative(Business/Personal), please attach/enclose the power of attorney. ",null,null,null,null,null,null,null,null,null,null,null,null,null,null,null,null,null,null,null,null,"（※）代理人による申請の場合は委任状が必要です。 If you are representative(Business/Personal), please attach/enclose the power of attorney. "]
[]
[]
["Ⓑ証明書を必要としている方\nName of person/company\n who need the attached document",null,null,null,null,{"$f":"Data!$H4","v":0},null,null,null,null,null,null,null,null,null,null,null,null,null,null,null,"Ⓑ証明書を必要としている方\nName of person/company\n who need the attached document",null,null,null,null,"児童生徒名"]
[]
[]
[null,null,null,null,null,"Ⓐ と同じ場合は記入不要です。 If the same as Ⓐ , you do not have to fill out.",null,null,null,null,null,null,null,null,null,null,null,null,null,null,null,null,null,null,null,null,"Ⓐ と同じ場合は記入不要です。 If the same as Ⓐ , you do not have to fill out."]
["提出先国名\nCountry to submit",null,{"$f":"Data!$H3","v":0},null,null,null,null,"使用目的\nPurpose of use",null,null,"□就学（留学）（Study abroad）",null,null,null,null,"□就職（Enter employment）",null,null,null,null,null,"提出先国名\nCountry to submit",null,"提出国名",null,null,null,null,"使用目的\nPurpose of use",null,null,"□就学（留学）（Study abroad）",null,null,null,null,"□就職（Enter employment）"]
[null,null,null,null,null,null,null,null,null,null,"□査証申請（Visa application）",null,null,null,null,"□出生（Birth ）",null,null,null,null,null,null,null,null,null,null,null,null,null,null,null,"□査証申請（Visa application）",null,null,null,null,"□出生（Birth ）"]
[null,null,null,null,null,null,null,null,null,null,"□結婚（Marriage）",null,null,null,null,"□離婚（Divorce）",null,null,null,null,null,null,null,null,null,null,null,null,null,null,null,"□結婚（Marriage）",null,null,null,null,"□離婚（Divorce）"]
[null,null,null,null,null,null,null,null,null,null,"□その他（Others）（　　　　　　　　　　　　　　　　　　　　　　　　　）",null,null,null,null,null,null,null,null,null,null,null,null,null,null,null,null,null,null,null,null,"□その他（Others）（　　　　　　　　　　　　　　　　　　　　　　　　　）"]
[]
["書　　　類",null,null,null,null,null,null,null,null,null,null,null,null,null,null,null,null,null,null,null,null,"書　　　類"]
[null,"★申請アポスティーユが必要な書類（添付される書類）の番号に○をつけて下さい。",null,null,null,null,null,null,null,null,null,null,null,null,null,null,null,null,null,null,null,null,"★申請アポスティーユが必要な書類（添付される書類）の番号に○をつけて下さい。"]
[null,"Please circle the corresponding number of the　document(s) you attached for the apostille.",null,null,null,null,null,null,null,null,null,null,null,null,null,null,null,null,null,null,null,null,"Please circle the corresponding number of the　document(s) you attached for the apostille."]
[null,"１","婚姻要件具備証明書",null,null,null,null,null,null,"７","戸籍謄(抄)本",null,null,null,null,null,null,null,null,null,null,null,"１","婚姻要件具備証明書",null,null,null,null,null,null,"７","戸籍謄(抄)本"]
[null,null,"　Certificate(s) of eligibility for marriage",null,null,null,null,null,null,null,"　Family register(s) （Head of family:",null,null,null,null,null,null,null,null,"）",null,null,null,"　Certificate(s) of eligibility for marriage",null,null,null,null,null,null,null,"　Family register(s) （Head of family:",null,null,null,null,null,null,null,null,"）"]
[null,"２","公証人認証書",null,null,null,null,null,null,"８","学校関係（卒業・修了・成績・その他：",null,null,null,null,null,null,null,null,"）",null,null,"２","公証人認証書",null,null,null,null,null,null,"８","学校関係（卒業・修了・成績・その他：",null,null,null,null,null,"教育課程証明書・在籍証明書）"]
[null,null,"　Notarial document(s)",null,null,null,null,null,null,null,"　Education document(s)（Graduation/Completion/",null,null,null,null,null,null,null,null,null,null,null,null,"　Notarial document(s)",null,null,null,null,null,null,null,"　Education document(s)（Graduation/Completion/"]
[null,"３","医療医薬機器製造",null,null,null,null,null,null,null,"　Transcript(s)/Others:",null,null,null,null,null,null,null,null,"）",null,null,"３","医療医薬機器製造",null,null,null,null,null,null,null,"　Transcript(s)/Others:",null,null,null,null,null,null,null,null,"）"]
[null,null,"　Medical and pharmaceutical document(s)",null,null,null,null,null,null,"９","受理・記載事項証明（出生・婚姻・離婚・死亡・住民票・",null,null,null,null,null,null,null,null,null,null,null,null,"　Medical and pharmaceutical document(s)",null,null,null,null,null,null,"９","受理・記載事項証明（出生・婚姻・離婚・死亡・住民票・"]
[null,"４","警察証明",null,null,null,null,null,null,null,"その他：",null,null,null,null,null,null,null,null,"）",null,null,"４","警察証明",null,null,null,null,null,null,null,"その他：",null,null,null,null,null,null,null,null,"）"]
[null,null,"　Criminal record(s)",null,null,null,null,null,null,null,"　Civil status document(s) （Birth / Marriage / Divorce / ",null,null,null,null,null,null,null,null,null,null,null,null,"　Criminal record(s)",null,null,null,null,null,null,null,"　Civil status document(s) （Birth / Marriage / Divorce / "]
[null,"５","健康診断書",null,null,null,null,null,null,null,"　Death / Residence / Others: ",null,null,null,null,null,null,null,null,"）",null,null,"５","健康診断書",null,null,null,null,null,null,null,"　Death / Residence / Others: ",null,null,null,null,null,null,null,null,"）"]
[null,null,"　Medical certificate(s)",null,null,null,null,null,null,"１０","その他（",null,null,null,null,null,null,null,null,"）",null,null,null,"　Medical certificate(s)",null,null,null,null,null,null,"１０","その他（",null,null,null,null,null,null,null,null,"）"]
["       Document(s)","６","登記事項証明",null,null,null,null,null,null,null,"　Others（",null,null,null,null,null,null,null,null,"）",null,"       Document(s)","６","登記事項証明",null,null,null,null,null,null,null,"　Others（",null,null,null,null,null,null,null,null,"）"]
[null,null,"　Extracts from commercial registers",null,null,null,null,null,null,null,null,null,null,null,null,null,null,null,null,null,null,null,null,"　Extracts from commercial registers"]
[]
[null,"書類の発行者の肩書き（公印名）\nNameCapacity of official seal",null,null,null,null,null,{"$f":"学校基礎情報!$B2","v":0},null,null,null,null,null,null,null,null,null,null,null,null,null,null,"書類の発行者の肩書き（公印名）\nNameCapacity of official seal",null,null,null,null,null,"学校名"]
[]
[]
[null,"発行者氏名\nName of the person signing \nthe document(s)",null,null,null,null,null,{"$f":"学校基礎情報!$B13","v":0},null,null,null,null,null,null,null,null,null,null,null,null,null,null,"発行者氏名\nName of the person signing \nthe document(s)",null,null,null,null,null,"学校長名"]
[]
[]
[null,"発行年月日\nDate of  issue ",null,null,null,null,null,{"$f":"Data!$H2","v":0},null,{"$f":"[1]Data!$H1","v":0},null,{"$f":"[1]Data!$H1","v":0},null,"年\nYear",{"$f":"Data!$N2","v":0},{"$f":"[1]Data!$N1","v":0},"月\nMonth",{"$f":"Data!$T2","v":0},{"$f":"[1]Data!$T1","v":0},"日\nDay",null,null,"発行年月日\nDate of  issue ",null,null,null,null,null,null,null,{"$f":"[1]Data!$H1","v":0},null,{"$f":"[1]Data!$H1","v":0},null,"年\nYear",null,{"$f":"[1]Data!$N1","v":0},"月\nMonth",null,{"$f":"[1]Data!$T1","v":0},"日\nDay"]
[]
[]
[null,"申請通数\nNumber of documents",null,null,null,null,null,"□１通(One Document)",null,null,null,"□(同一書類が)4通以上(　　　通。理由(reason)　　　　　  　)  ",null,null,null,null,null,null,null,null,null,null,"申請通数\nNumber of documents",null,null,null,null,null,"□１通(One Document)",null,null,null,"□(同一書類が)4通以上(　　　通。理由(reason)　　　　　  　)  "]
[null,null,null,null,null,null,null,"□2通(Two Documents)",null,null,null,"※同一の証明書を4枚以上申請をする場合は、理由(提出先等)を記載してください。",null,null,null,null,null,null,null,null,null,null,null,null,null,null,null,null,"□2通(Two Documents)",null,null,null,"※同一の証明書を4枚以上申請をする場合は、理由(提出先等)を記載してください。"]
[null,null,null,null,null,null,null,"□3通(Three Documents)",null,null,null,"If you are applying for more than four, please provide the reason (e.g., where to submit it).",null,null,null,null,null,null,null,null,null,null,null,null,null,null,null,null,"□3通(Three Documents)",null,null,null,"If you are applying for more than four, please provide the reason (e.g., where to submit it)."]
["（注１）アポスティーユは、外国公文書の認証を不要とする条約（ハーグ条約）の締約国（地域）が提出を求めている場合のみ申請できます。 You can apply for apostille only when it is required from member country of the Hague Apostille Convention.\n（注２）同一書類の申請が４通以上で理由がない場合、３通を上限として交付いたしますので、予め御了承ください。場合によっては､提出先からの要求文書を提出して頂く可能性があります。Please note that if there is no reason why more than same four applications should be submitted, the maximum number of applications will be limited to three. In some cases, you may be asked to provide request documents by the party to submit.",null,null,null,null,null,null,null,null,null,null,null,null,null,null,null,null,null,null,null,null,"（注１）アポスティーユは、外国公文書の認証を不要とする条約（ハーグ条約）の締約国（地域）が提出を求めている場合のみ申請できます。 You can apply for apostille only when it is required from member country of the Hague Apostille Convention.\n（注２）同一書類の申請が４通以上で理由がない場合、３通を上限として交付いたしますので、予め御了承ください。場合によっては､提出先からの要求文書を提出して頂く可能性があります。Please note that if there is no reason why more than same four applications should be submitted, the maximum number of applications will be limited to three. In some cases, you may be asked to provide request documents by the party to submit."]
[]
[]
[]
["※外務省使用欄　Official use only",null,null,null,null,null,null,null,null,null,null,null,null,null,null,null,null,null,null,null,null,"※外務省使用欄　Official use only"]
["証明日付",null,null,null,null,null,null,null,null,null,null,"受理番号",null,null,null,null,null,null,null,null,null,"証明日付",null,null,null,null,null,null,null,null,null,null,"受理番号"]
[]
["証明番号",null,null,null,null,null,null,null,null,null,null,null,null,null,null,null,null,null,null,null,null,"証明番号"]

{"sheet":"外務省お願い","index":9,"n_rows":28,"n_cols":48,"rows_kept":28,"cut":false,"hidden":false,"merged":[[6,0,6,47],[8,0,8,47],[9,0,9,47],[0,30,0,32],[0,33,0,35],[0,36,0,37],[0,38,0,40],[0,41,0,42],[0,43,0,45],[0,46,0,47],[2,0,2,47],[4,0,4,47],[10,0,10,47],[12,0,12,47],[14,0,14,47],[16,0,16,47],[17,0,17,47],[18,0,18,47],[19,0,19,47],[20,17,20,45],[21,17,21,45],[22,0,22,47],[23,17,23,30],[23,34,23,46],[24,0,24,47],[25,17,25,21],[26,17,26,21],[32,0,32,47],[33,0,33,47],[34,0,34,47],[35,51,35,55],[27,17,27,21],[28,0,28,47],[29,0,29,47],[30,0,30,47],[31,0,31,47]]}
[null,null,null,null,null,null,null,null,null,null,null,null,null,null,null,null,null,null,null,null,null,null,null,null,null,null,null,null,null,null,"令和",null,null,{"$f":"Data!$H$2-1988-30","v":-2018},null,null,"年",null,{"$f":"Data!$N$2","v":0},null,null,"月",null,{"$f":"Data!$T$2","v":0},null,null,"日"]
[]
["　外務省大阪分室　御中"]
[]
["　貴職におかれましては、日々の政務お疲れさまです。"]
[]
["　さて、本校の児童が帰国に際しての書類を必要としておりますので、ご多忙中とは存じ"]
[]
["ますが、下記書類の証明手続きをお願いします。"]
[]
["記"]
[]
["１　在学証明書（１部）"]
[]
["２　教育課程証明書（１部）"]
[]
["３　成績証明書（１部）"]
[]
[]
[]
[null,null,null,null,null,null,null,null,null,null,null,null,null,null,null,null,null,"学校所在地"]
[null,null,null,null,null,null,null,null,null,null,null,null,null,null,null,null,null,{"$f":"学校基礎情報!$B$5","v":0}]
[]
[null,null,null,null,null,null,null,null,null,null,null,null,null,null,null,null,null,{"$f":"学校基礎情報!$B$2","v":0},null,null,null,null,null,null,null,null,null,null,null,null,null,"長",null,null,{"$f":"学校基礎情報!$B$13","v":0},null,null,null,null,null,null,null,null,null,null,null,null,"公印"]
[]
[null,null,null,null,null,null,null,null,null,null,null,null,null,null,null,null,null,"電話：",null,null,null,null,{"$f":"学校基礎情報!B9","v":0}]
[null,null,null,null,null,null,null,null,null,null,null,null,null,null,null,null,null,"FAX：",null,null,null,null,{"$f":"学校基礎情報!B10","v":0}]
[null,null,null,null,null,null,null,null,null,null,null,null,null,null,null,null,null,"E-mail：",null,null,null,null,{"$f":"学校基礎情報!B11","v":0}]